[Event "Live Chess"]
[Site "Chess.com"]
[Date "2023.05.21"]
[Round "-"]
[White "Chesscoach_Golichenko"]
[Black "HoarseyHorsey"]
[Result "1-0"]
[WhiteElo "2618"]
[BlackElo "1453"]
[TimeControl "300"]
[EndTime "3:37:21 PDT"]
[Termination "Chesscoach_Golichenko won by checkmate"]

1. d4 {[%clk 0:04:55.3]} 1... Nf6 {[%clk 0:04:58.7]} 2. c4 {[%clk 0:04:50.9]}
2... e6 {[%clk 0:04:57.6]} 3. Nc3 {[%clk 0:04:47.2]} 3... d5 {[%clk 0:04:56.8]}
4. Nf3 {[%clk 0:04:44.9]} 4... Bb4 {[%clk 0:04:55]} 5. Qc2 {[%clk 0:04:41.4]}
5... O-O {[%clk 0:04:53.8]} 6. a3 {[%clk 0:04:38.7]} 6... Bxc3+ {[%clk
0:04:52.8]} 7. Qxc3 {[%clk 0:04:38.6]} 7... c6 {[%clk 0:04:50.9]} 8. Bg5 {[%clk
0:04:36]} 8... Nbd7 {[%clk 0:04:49.4]} 9. e3 {[%clk 0:04:35]} 9... h6 {[%clk
0:04:48.5]} 10. Bd3 {[%clk 0:04:33.1]} 10... Kh8 {[%clk 0:04:42.6]} 11. Bh4
{[%clk 0:04:33]} 11... Qe8 {[%clk 0:04:36]} 12. Qc2 {[%clk 0:04:24.9]} 12... e5
{[%clk 0:04:24]} 13. dxe5 {[%clk 0:04:16.7]} 13... Nxe5 {[%clk 0:04:23.2]} 14.
Bxf6 {[%clk 0:04:15.5]} 14... gxf6 {[%clk 0:04:21.3]} 15. Nd4 {[%clk 0:04:04.9]}
15... Nxd3+ {[%clk 0:04:14.8]} 16. Qxd3 {[%clk 0:04:03.6]} 16... Rg8 {[%clk
0:04:12.9]} 17. g3 {[%clk 0:03:48.6]} 17... Bh3 {[%clk 0:04:06.4]} 18. O-O-O
{[%clk 0:03:44.9]} 18... Bg2 {[%clk 0:03:41.5]} 19. Rhg1 {[%clk 0:03:35.7]}
19... Be4 {[%clk 0:03:40]} 20. Qc3 {[%clk 0:03:33.7]} 20... Bg6 {[%clk
0:03:28.6]} 21. g4 {[%clk 0:03:18.8]} 21... Qd7 {[%clk 0:03:19.3]} 22. f4 {[%clk
0:03:12.6]} 22... Be4 {[%clk 0:03:17.2]} 23. f5 {[%clk 0:02:46.2]} 23... Rae8
{[%clk 0:02:48.3]} 24. h4 {[%clk 0:02:40.1]} 24... c5 {[%clk 0:02:37.9]} 25. Nc2
{[%clk 0:02:29.4]} 25... b5 {[%clk 0:01:57.7]} 26. Qxf6+ {[%clk 0:02:19]} 26...
Kh7 {[%clk 0:01:56]} 27. g5 {[%clk 0:02:13.4]} 27... Qxf5 {[%clk 0:01:50.7]} 28.
Qxh6# {[%clk 0:02:11.3]} 1-0

[Event "Live Chess"]
[Site "Chess.com"]
[Date "2023.05.21"]
[Round "-"]
[White "JoeRoot66"]
[Black "JanMur7"]
[Result "0-1"]
[WhiteElo "1909"]
[BlackElo "1975"]
[TimeControl "300"]
[EndTime "3:37:32 PDT"]
[Termination "JanMur7 won by resignation"]

1. e4 {[%clk 0:04:57.8]} 1... e5 {[%clk 0:04:59.1]} 2. Nc3 {[%clk 0:04:56.9]}
2... Nf6 {[%clk 0:04:58]} 3. f4 {[%clk 0:04:55.7]} 3... d5 {[%clk 0:04:57.6]} 4.
fxe5 {[%clk 0:04:54.9]} 4... Nxe4 {[%clk 0:04:57.2]} 5. Qf3 {[%clk 0:04:53.4]}
5... Nxc3 {[%clk 0:04:55.9]} 6. bxc3 {[%clk 0:04:52.6]} 6... c5 {[%clk
0:04:55.4]} 7. Qg3 {[%clk 0:04:51.1]} 7... Nc6 {[%clk 0:04:54.3]} 8. Nf3 {[%clk
0:04:48.4]} 8... Be6 {[%clk 0:04:52]} 9. Bb5 {[%clk 0:04:43.5]} 9... h5 {[%clk
0:04:49.7]} 10. O-O {[%clk 0:04:40.2]} 10... h4 {[%clk 0:04:49]} 11. Qf2 {[%clk
0:04:34.7]} 11... h3 {[%clk 0:04:48.1]} 12. g3 {[%clk 0:04:22.4]} 12... Be7
{[%clk 0:04:46.8]} 13. Bxc6+ {[%clk 0:04:19]} 13... bxc6 {[%clk 0:04:45.3]} 14.
d4 {[%clk 0:04:18.9]} 14... cxd4 {[%clk 0:04:43.1]} 15. cxd4 {[%clk 0:04:17.9]}
15... Qb6 {[%clk 0:04:29]} 16. c3 {[%clk 0:04:12.9]} 16... c5 {[%clk 0:04:26.6]}
17. Be3 {[%clk 0:04:05]} 17... c4 {[%clk 0:04:21.9]} 18. Rab1 {[%clk 0:04:00.6]}
18... Qc6 {[%clk 0:04:20.4]} 19. Bg5 {[%clk 0:03:47.2]} 19... Qd7 {[%clk
0:04:12.1]} 20. Bxe7 {[%clk 0:03:43.3]} 20... Qxe7 {[%clk 0:04:12]} 21. Qe3
{[%clk 0:02:46.2]} 21... O-O {[%clk 0:04:05.4]} 22. Ng5 {[%clk 0:02:39.5]} 22...
Rab8 {[%clk 0:04:00.7]} 23. Qf4 {[%clk 0:02:24.6]} 23... Rxb1 {[%clk 0:03:58.5]}
24. Rxb1 {[%clk 0:02:23]} 24... Qa3 {[%clk 0:03:56.5]} 25. Qh4 {[%clk
0:02:20.3]} 25... Bf5 {[%clk 0:03:55.5]} 26. Rf1 {[%clk 0:02:14.9]} 26... Qxa2
{[%clk 0:03:47]} 27. Rf2 {[%clk 0:01:58.2]} 27... Qb1+ {[%clk 0:03:41.3]} 28.
Rf1 {[%clk 0:01:56.3]} 28... Qc2 {[%clk 0:03:39.6]} 29. Rf2 {[%clk 0:01:51.3]}
29... Qc1+ {[%clk 0:03:36.3]} 30. Rf1 {[%clk 0:01:50]} 30... Qe3+ {[%clk
0:03:28.4]} 31. Rf2 {[%clk 0:01:48.2]} 31... Bd3 {[%clk 0:03:20]} 32. Qxh3
{[%clk 0:01:34.8]} 0-1

[Event "Live Chess"]
[Site "Chess.com"]
[Date "2023.05.21"]
[Round "-"]
[White "peter-785"]
[Black "ChessTWSS"]
[Result "1/2-1/2"]
[WhiteElo "1190"]
[BlackElo "1593"]
[TimeControl "300"]
[EndTime "3:38:15 PDT"]
[Termination "Game drawn - insufficient material"]

1. e4 {[%clk 0:04:57.7]} 1... c5 {[%clk 0:04:54.9]} 2. Nf3 {[%clk 0:04:53.6]}
2... Nc6 {[%clk 0:04:51.4]} 3. Bc4 {[%clk 0:04:49.6]} 3... e6 {[%clk 0:04:48]}
4. d4 {[%clk 0:04:48.6]} 4... Nf6 {[%clk 0:04:42.1]} 5. Nc3 {[%clk 0:04:33.9]}
5... d5 {[%clk 0:04:34.4]} 6. exd5 {[%clk 0:04:28.2]} 6... exd5 {[%clk 0:04:30]}
7. Bb5 {[%clk 0:04:25.2]} 7... Be7 {[%clk 0:04:20.5]} 8. O-O {[%clk 0:04:23.3]}
8... O-O {[%clk 0:04:13.3]} 9. Be3 {[%clk 0:04:05.7]} 9... cxd4 {[%clk
0:04:06.2]} 10. Nxd4 {[%clk 0:04:02.7]} 10... Nxd4 {[%clk 0:03:57.6]} 11. Bxd4
{[%clk 0:04:01]} 11... Bg4 {[%clk 0:03:47.8]} 12. f3 {[%clk 0:03:58.5]} 12...
Be6 {[%clk 0:03:40.7]} 13. Qe2 {[%clk 0:03:38]} 13... a6 {[%clk 0:03:36.1]} 14.
Bd3 {[%clk 0:03:33]} 14... b5 {[%clk 0:03:24]} 15. a3 {[%clk 0:03:26.2]} 15...
Bd6 {[%clk 0:03:16.5]} 16. f4 {[%clk 0:03:09.1]} 16... Qe7 {[%clk 0:03:01.3]}
17. f5 {[%clk 0:02:29.6]} 17... Bd7 {[%clk 0:02:57.3]} 18. Qf3 {[%clk
0:02:16.7]} 18... Be5 {[%clk 0:02:39.2]} 19. Bxe5 {[%clk 0:02:08]} 19... Qxe5
{[%clk 0:02:35.8]} 20. Rae1 {[%clk 0:02:05.9]} 20... Qd6 {[%clk 0:02:27.3]} 21.
Rd1 {[%clk 0:01:49.1]} 21... d4 {[%clk 0:02:21.4]} 22. Ne4 {[%clk 0:01:46.1]}
22... Nxe4 {[%clk 0:02:20.5]} 23. Qxe4 {[%clk 0:01:40.1]} 23... Bc6 {[%clk
0:02:15.5]} 24. Qf4 {[%clk 0:01:36.5]} 24... Qxf4 {[%clk 0:02:09.3]} 25. Rxf4
{[%clk 0:01:35.8]} 25... Rad8 {[%clk 0:01:59.3]} 26. Kf2 {[%clk 0:01:34.6]}
26... g5 {[%clk 0:01:54.5]} 27. Rg4 {[%clk 0:01:30]} 27... h6 {[%clk 0:01:51.3]}
28. h4 {[%clk 0:01:27.8]} 28... f6 {[%clk 0:01:48.7]} 29. hxg5 {[%clk
0:01:21.7]} 29... hxg5 {[%clk 0:01:43.1]} 30. Rh1 {[%clk 0:01:16.8]} 30... Kg7
{[%clk 0:01:38.9]} 31. Rh3 {[%clk 0:01:11.5]} 31... Rh8 {[%clk 0:01:32]} 32.
Rxh8 {[%clk 0:01:06.8]} 32... Rxh8 {[%clk 0:01:30.1]} 33. Rxd4 {[%clk 0:01:05]}
33... Rh4 {[%clk 0:01:22.6]} 34. Rxh4 {[%clk 0:00:59.9]} 34... gxh4 {[%clk
0:01:18.4]} 35. Bf1 {[%clk 0:00:45.8]} 35... Kh6 {[%clk 0:01:12.6]} 36. Ke3
{[%clk 0:00:44.8]} 36... Kg5 {[%clk 0:01:09.4]} 37. Kf2 {[%clk 0:00:30.9]} 37...
Kxf5 {[%clk 0:01:06.7]} 38. Bd3+ {[%clk 0:00:30.2]} 38... Kg4 {[%clk 0:01:00]}
39. c4 {[%clk 0:00:27.8]} 39... bxc4 {[%clk 0:00:56.5]} 40. Bxc4 {[%clk
0:00:26.5]} 40... a5 {[%clk 0:00:55.8]} 41. b4 {[%clk 0:00:23.4]} 41... axb4
{[%clk 0:00:53.3]} 42. axb4 {[%clk 0:00:22.5]} 42... h3 {[%clk 0:00:48.7]} 43.
Be6+ {[%clk 0:00:20]} 43... Kh4 {[%clk 0:00:43.4]} 44. Bxh3 {[%clk 0:00:19.3]}
44... Kg5 {[%clk 0:00:39.9]} 45. Bc8 {[%clk 0:00:17.4]} 45... Kf4 {[%clk
0:00:38.2]} 46. g4 {[%clk 0:00:15.6]} 46... Ke5 {[%clk 0:00:37.2]} 47. Bf5
{[%clk 0:00:14.5]} 47... Kd6 {[%clk 0:00:34.7]} 48. Ke3 {[%clk 0:00:13.7]} 48...
Bb7 {[%clk 0:00:30]} 49. Bd3 {[%clk 0:00:12.6]} 49... Kc6 {[%clk 0:00:29]} 50.
b5+ {[%clk 0:00:11.9]} 50... Kb6 {[%clk 0:00:28]} 51. Kf4 {[%clk 0:00:11.3]}
51... Bc8 {[%clk 0:00:24.6]} 52. g5 {[%clk 0:00:10.9]} 52... fxg5+ {[%clk
0:00:23.7]} 53. Kxg5 {[%clk 0:00:10.8]} 53... Bd7 {[%clk 0:00:22]} 54. Kf6
{[%clk 0:00:10.3]} 54... Bxb5 {[%clk 0:00:21.2]} 1/2-1/2

[Event "Live Chess"]
[Site "Chess.com"]
[Date "2023.05.21"]
[Round "-"]
[White "LiamBellwood"]
[Black "YrrriKharkiv"]
[Result "0-1"]
[WhiteElo "1931"]
[BlackElo "2062"]
[TimeControl "300"]
[EndTime "3:38:15 PDT"]
[Termination "YrrriKharkiv won by resignation"]

1. d4 {[%clk 0:04:59.4]} 1... Nf6 {[%clk 0:04:56.6]} 2. Nc3 {[%clk 0:04:59.1]}
2... d5 {[%clk 0:04:54.1]} 3. Bf4 {[%clk 0:04:58.6]} 3... e6 {[%clk 0:04:50.2]}
4. Nb5 {[%clk 0:04:57.9]} 4... Na6 {[%clk 0:04:48.5]} 5. a3 {[%clk 0:04:57.2]}
5... c6 {[%clk 0:04:47.8]} 6. Nc3 {[%clk 0:04:56.9]} 6... Bd6 {[%clk 0:04:44.9]}
7. e3 {[%clk 0:04:56.8]} 7... Bxf4 {[%clk 0:04:43.7]} 8. exf4 {[%clk 0:04:56.7]}
8... Nc7 {[%clk 0:04:41.9]} 9. Nf3 {[%clk 0:04:56]} 9... O-O {[%clk 0:04:40.3]}
10. Qd2 {[%clk 0:04:55.1]} 10... Qd6 {[%clk 0:04:31.2]} 11. Ne5 {[%clk
0:04:53.4]} 11... c5 {[%clk 0:04:29.7]} 12. h4 {[%clk 0:04:48.5]} 12... cxd4
{[%clk 0:04:28.2]} 13. Qxd4 {[%clk 0:04:48.4]} 13... b5 {[%clk 0:04:09.7]} 14.
h5 {[%clk 0:04:46.4]} 14... h6 {[%clk 0:04:05]} 15. g4 {[%clk 0:04:38.2]} 15...
a6 {[%clk 0:03:09.8]} 16. g5 {[%clk 0:04:37]} 16... hxg5 {[%clk 0:03:08.1]} 17.
fxg5 {[%clk 0:04:36.9]} 17... Nd7 {[%clk 0:03:03.5]} 18. Nxd7 {[%clk 0:04:18.7]}
18... Bxd7 {[%clk 0:02:59.6]} 19. h6 {[%clk 0:04:17.9]} 19... e5 {[%clk
0:02:56.9]} 20. Qh4 {[%clk 0:04:10.8]} 20... Qg6 {[%clk 0:02:47]} 21. Bd3 {[%clk
0:03:45.3]} 21... e4 {[%clk 0:02:42.6]} 22. hxg7 {[%clk 0:03:43]} 22... Qxg7
{[%clk 0:02:39.1]} 23. Bxe4 {[%clk 0:03:18.5]} 23... dxe4 {[%clk 0:02:33.5]} 24.
Nxe4 {[%clk 0:03:18.4]} 24... Rfe8 {[%clk 0:02:25.9]} 25. O-O-O {[%clk
0:03:17.2]} 25... Rxe4 {[%clk 0:02:13.9]} 26. Qxe4 {[%clk 0:03:16.1]} 26... Re8
{[%clk 0:02:05.1]} 27. Qh4 {[%clk 0:03:07]} 27... Bf5 {[%clk 0:01:59.2]} 28.
Rhe1 {[%clk 0:02:58.3]} 28... Rc8 {[%clk 0:01:53.9]} 29. Qf4 {[%clk 0:02:32.4]}
29... Qg6 {[%clk 0:01:46.7]} 30. c3 {[%clk 0:01:36.2]} 30... Ne6 {[%clk
0:01:40.4]} 31. Rxe6 {[%clk 0:01:09.7]} 31... Qxe6 {[%clk 0:01:30.9]} 32. Rh1
{[%clk 0:01:09.2]} 32... Qe4 {[%clk 0:01:21.4]} 33. Qxe4 {[%clk 0:00:47.8]}
33... Bxe4 {[%clk 0:01:20.4]} 34. Re1 {[%clk 0:00:47.3]} 34... Bf5 {[%clk
0:01:13.8]} 35. Re5 {[%clk 0:00:46.2]} 35... Be6 {[%clk 0:01:09.5]} 36. f4
{[%clk 0:00:45.8]} 36... Rd8 {[%clk 0:01:05.7]} 37. f5 {[%clk 0:00:43.5]} 37...
Bb3 {[%clk 0:01:04.7]} 38. Re1 {[%clk 0:00:38.6]} 38... Rd5 {[%clk 0:01:03.6]}
39. f6 {[%clk 0:00:32.8]} 39... Kh7 {[%clk 0:00:57.7]} 40. Rg1 {[%clk
0:00:26.9]} 40... Kg6 {[%clk 0:00:56.2]} 41. Re1 {[%clk 0:00:22.8]} 41... Rxg5
{[%clk 0:00:53.8]} 42. Kd2 {[%clk 0:00:19]} 42... Rd5+ {[%clk 0:00:51.6]} 43.
Kc1 {[%clk 0:00:16.2]} 43... Kxf6 {[%clk 0:00:49.2]} 0-1

[Event "Live Chess"]
[Site "Chess.com"]
[Date "2023.05.21"]
[Round "-"]
[White "EdenHazard8"]
[Black "smoggyrabbit"]
[Result "1-0"]
[WhiteElo "1956"]
[BlackElo "1704"]
[TimeControl "300"]
[EndTime "3:38:16 PDT"]
[Termination "EdenHazard8 won on time"]

1. e4 {[%clk 0:04:57.2]} 1... e6 {[%clk 0:04:58.7]} 2. d4 {[%clk 0:04:55.6]}
2... d5 {[%clk 0:04:57.9]} 3. Nd2 {[%clk 0:04:55.1]} 3... c5 {[%clk 0:04:55.1]}
4. Ngf3 {[%clk 0:04:54.1]} 4... Nc6 {[%clk 0:04:44.3]} 5. exd5 {[%clk
0:04:48.9]} 5... Qxd5 {[%clk 0:04:42.8]} 6. c3 {[%clk 0:04:48.8]} 6... cxd4
{[%clk 0:04:39.2]} 7. Bc4 {[%clk 0:04:47.6]} 7... Qd8 {[%clk 0:04:37.3]} 8. O-O
{[%clk 0:04:44.6]} 8... dxc3 {[%clk 0:04:35.2]} 9. bxc3 {[%clk 0:04:44.5]} 9...
Nf6 {[%clk 0:04:12.8]} 10. Re1 {[%clk 0:04:39.2]} 10... Be7 {[%clk 0:03:52.2]}
11. Qc2 {[%clk 0:04:36]} 11... O-O {[%clk 0:03:45.8]} 12. Rb1 {[%clk 0:04:32.6]}
12... b6 {[%clk 0:03:38.6]} 13. Ne4 {[%clk 0:04:26.5]} 13... Bb7 {[%clk
0:03:11.6]} 14. Bf4 {[%clk 0:04:12.8]} 14... Nxe4 {[%clk 0:02:53.7]} 15. Rxe4
{[%clk 0:03:48.8]} 15... Na5 {[%clk 0:02:02.1]} 16. Rd4 {[%clk 0:03:46.4]} 16...
Qc8 {[%clk 0:01:55.7]} 17. Ne5 {[%clk 0:03:33.3]} 17... Bc5 {[%clk 0:01:27.3]}
18. Rd3 {[%clk 0:03:23.6]} 18... Nxc4 {[%clk 0:01:04.1]} 19. Nxc4 {[%clk
0:03:23.5]} 19... Be4 {[%clk 0:00:59.7]} 20. Ne5 {[%clk 0:03:06.2]} 20... Bxd3
{[%clk 0:00:56.3]} 21. Qxd3 {[%clk 0:03:06.1]} 21... Rd8 {[%clk 0:00:33.4]} 22.
Qg3 {[%clk 0:02:58.6]} 22... Bd6 {[%clk 0:00:25.4]} 23. Bg5 {[%clk 0:02:50]}
23... Bxe5 {[%clk 0:00:22.8]} 24. Qxe5 {[%clk 0:02:48.6]} 24... Rd5 {[%clk
0:00:20.4]} 25. Qg3 {[%clk 0:02:45.3]} 25... Qd7 {[%clk 0:00:19.1]} 26. h4
{[%clk 0:02:41.9]} 26... Rd1+ {[%clk 0:00:17]} 27. Rxd1 {[%clk 0:02:41.4]} 27...
Qxd1+ {[%clk 0:00:16.8]} 28. Kh2 {[%clk 0:02:41]} 28... Qd5 {[%clk 0:00:14.5]}
29. Bf6 {[%clk 0:02:39.7]} 29... g6 {[%clk 0:00:12]} 30. Qf4 {[%clk 0:02:37.4]}
30... Rd8 {[%clk 0:00:09.2]} 31. Qh6 {[%clk 0:02:33.2]} 31... Qd6+ {[%clk
0:00:08.2]} 32. g3 {[%clk 0:02:32]} 32... Qf8 {[%clk 0:00:06.7]} 33. Qf4 {[%clk
0:02:30.7]} 33... Rc8 {[%clk 0:00:04.3]} 34. Be5 {[%clk 0:02:29.2]} 34... Rc5
{[%clk 0:00:02.3]} 35. Bd6 {[%clk 0:02:27.6]} 35... Rf5 {[%clk 0:00:01.5]} 36.
Bxf8 {[%clk 0:02:26]} 36... Rxf4 {[%clk 0:00:01]} 37. gxf4 {[%clk 0:02:25.9]}
1-0

[Event "Live Chess"]
[Site "Chess.com"]
[Date "2023.05.21"]
[Round "-"]
[White "Ferrarifan27"]
[Black "garyjc"]
[Result "1-0"]
[WhiteElo "2096"]
[BlackElo "1045"]
[TimeControl "300"]
[EndTime "3:38:16 PDT"]
[Termination "Ferrarifan27 won by resignation"]

1. e4 {[%clk 0:04:59]} 1... c5 {[%clk 0:04:58.4]} 2. Nf3 {[%clk 0:04:57.5]} 2...
a6 {[%clk 0:04:51.1]} 3. d4 {[%clk 0:04:55.5]} 3... cxd4 {[%clk 0:04:45.6]} 4.
Nxd4 {[%clk 0:04:55.4]} 4... e5 {[%clk 0:04:38.9]} 5. Nf3 {[%clk 0:04:53.2]}
5... Nf6 {[%clk 0:04:28.6]} 6. Nc3 {[%clk 0:04:49.9]} 6... Bd6 {[%clk
0:04:14.6]} 7. Bg5 {[%clk 0:04:46.5]} 7... Qb6 {[%clk 0:03:42.7]} 8. Bxf6 {[%clk
0:04:34.2]} 8... gxf6 {[%clk 0:03:40.6]} 9. Nd5 {[%clk 0:04:33.3]} 9... Bb4+
{[%clk 0:03:26.9]} 10. c3 {[%clk 0:04:30]} 10... Bxc3+ {[%clk 0:02:53.8]} 11.
bxc3 {[%clk 0:04:24]} 11... Qd6 {[%clk 0:02:40.3]} 12. Nh4 {[%clk 0:04:20.6]}
12... Nc6 {[%clk 0:02:32.4]} 13. Nf5 {[%clk 0:04:18.9]} 13... Qa3 {[%clk
0:02:22.4]} 14. Nxf6+ {[%clk 0:04:08.3]} 14... Kf8 {[%clk 0:02:16.6]} 15. Qd6+
{[%clk 0:04:02.5]} 15... Qxd6 {[%clk 0:02:11.5]} 16. Nxd6 {[%clk 0:04:02.4]}
16... b5 {[%clk 0:02:04.6]} 17. Nxc8 {[%clk 0:03:57.8]} 17... Rxc8 {[%clk
0:02:02.8]} 18. Nxd7+ {[%clk 0:03:56.9]} 18... Kg7 {[%clk 0:01:56.8]} 19. Nb6
{[%clk 0:03:55]} 19... Rcd8 {[%clk 0:01:52.6]} 20. Be2 {[%clk 0:03:53.8]} 20...
Rhe8 {[%clk 0:01:42.9]} 21. Rd1 {[%clk 0:03:45.9]} 21... Rxd1+ {[%clk
0:01:36.7]} 22. Kxd1 {[%clk 0:03:45.8]} 22... Rd8+ {[%clk 0:01:33.8]} 23. Kc2
{[%clk 0:03:43]} 23... Rb8 {[%clk 0:01:16.2]} 24. Nd5 {[%clk 0:03:40.2]} 24...
b4 {[%clk 0:01:12]} 25. cxb4 {[%clk 0:03:39.4]} 25... Nxb4+ {[%clk 0:01:09.4]}
26. Nxb4 {[%clk 0:03:38.5]} 26... Rxb4 {[%clk 0:01:08.2]} 27. Kc3 {[%clk
0:03:34]} 27... Ra4 {[%clk 0:01:04.5]} 28. Kb3 {[%clk 0:03:29.1]} 28... Rxe4
{[%clk 0:01:02]} 29. Bxa6 {[%clk 0:03:28]} 29... Rd4 {[%clk 0:00:52.8]} 30. Re1
{[%clk 0:03:23.7]} 30... f6 {[%clk 0:00:50.7]} 31. Bc4 {[%clk 0:03:22.2]} 31...
Rd2 {[%clk 0:00:47.8]} 32. Re2 {[%clk 0:03:20.8]} 32... Rd8 {[%clk 0:00:45.1]}
33. a4 {[%clk 0:03:18.8]} 33... Rb8+ {[%clk 0:00:39.9]} 34. Bb5 {[%clk
0:03:17.7]} 1-0

[Event "Live Chess"]
[Site "Chess.com"]
[Date "2023.05.21"]
[Round "-"]
[White "chessfiction"]
[Black "Shepherds_Pie"]
[Result "1-0"]
[WhiteElo "2321"]
[BlackElo "1937"]
[TimeControl "300"]
[EndTime "3:38:20 PDT"]
[Termination "chessfiction won by resignation"]

1. e4 {[%clk 0:04:58.7]} 1... e6 {[%clk 0:04:58.8]} 2. d4 {[%clk 0:04:58.5]}
2... d5 {[%clk 0:04:55.5]} 3. Nc3 {[%clk 0:04:57.4]} 3... Bb4 {[%clk 0:04:53.8]}
4. e5 {[%clk 0:04:56.7]} 4... c5 {[%clk 0:04:52.8]} 5. a3 {[%clk 0:04:56]} 5...
Ba5 {[%clk 0:04:51.9]} 6. dxc5 {[%clk 0:04:54.2]} 6... Bxc3+ {[%clk 0:04:50.3]}
7. bxc3 {[%clk 0:04:54.1]} 7... Nc6 {[%clk 0:04:48.9]} 8. Nf3 {[%clk 0:04:52.3]}
8... Nge7 {[%clk 0:04:47.7]} 9. Bd3 {[%clk 0:04:51.5]} 9... Qa5 {[%clk
0:04:44.4]} 10. O-O {[%clk 0:04:48.6]} 10... Qxc3 {[%clk 0:04:40.3]} 11. Rb1
{[%clk 0:04:41.9]} 11... a6 {[%clk 0:04:31.7]} 12. Re1 {[%clk 0:04:30.3]} 12...
Qxc5 {[%clk 0:04:25.5]} 13. Ng5 {[%clk 0:04:21.9]} 13... h6 {[%clk 0:04:18.1]}
14. Qh5 {[%clk 0:04:16.2]} 14... O-O {[%clk 0:04:12.5]} 15. Re3 {[%clk
0:04:03.7]} 15... d4 {[%clk 0:04:05.1]} 16. Re4 {[%clk 0:03:42.9]} 16... Nxe5
{[%clk 0:03:52.4]} 17. Nxf7 {[%clk 0:03:39]} 17... Rxf7 {[%clk 0:03:45.8]} 18.
Rxe5 {[%clk 0:03:36.7]} 18... Qd6 {[%clk 0:03:40]} 19. Bd2 {[%clk 0:03:24]}
19... Nf5 {[%clk 0:03:33.2]} 20. Rbe1 {[%clk 0:03:17.3]} 20... Bd7 {[%clk
0:03:26]} 21. Bf4 {[%clk 0:02:58.4]} 21... Qf8 {[%clk 0:03:21]} 22. Qg6 {[%clk
0:02:27.5]} 22... Rf6 {[%clk 0:03:14.8]} 23. Qg4 {[%clk 0:02:22.1]} 23... g6
{[%clk 0:02:48.3]} 24. g3 {[%clk 0:02:05.7]} 24... h5 {[%clk 0:02:39.4]} 25. Qg5
{[%clk 0:02:04.1]} 25... Qg7 {[%clk 0:02:30.9]} 26. Bc4 {[%clk 0:02:00.6]} 26...
Re8 {[%clk 0:02:28.1]} 27. R5e4 {[%clk 0:01:57.4]} 27... Nd6 {[%clk 0:02:18]}
28. Bxd6 {[%clk 0:01:43.2]} 28... Rf5 {[%clk 0:02:16.5]} 29. Qh4 {[%clk
0:01:34.9]} 29... Kh7 {[%clk 0:02:13.6]} 30. Be5 {[%clk 0:01:25]} 30... Qh6
{[%clk 0:02:10.8]} 31. Rxd4 {[%clk 0:01:20.7]} 31... Bc6 {[%clk 0:02:08.6]} 32.
Bd3 {[%clk 0:01:13.7]} 32... Rxe5 {[%clk 0:02:06.6]} 33. Rxe5 {[%clk 0:01:10.2]}
33... Qc1+ {[%clk 0:02:04.6]} 34. Bf1 {[%clk 0:01:09.3]} 34... Bb5 {[%clk
0:02:01]} 35. Rxb5 {[%clk 0:01:06.9]} 35... axb5 {[%clk 0:01:59.4]} 36. Rd7+
{[%clk 0:01:06]} 36... Kh6 {[%clk 0:01:51]} 37. Qf6 {[%clk 0:00:56.7]} 37... Rc8
{[%clk 0:01:42.1]} 38. Qg7+ {[%clk 0:00:52.7]} 38... Kg5 {[%clk 0:01:40.4]} 39.
h4+ {[%clk 0:00:52.1]} 39... Kf5 {[%clk 0:01:36.2]} 40. Rf7+ {[%clk 0:00:50.7]}
40... Ke4 {[%clk 0:01:33.3]} 41. Qxg6+ {[%clk 0:00:49.7]} 41... Kd4 {[%clk
0:01:32.1]} 42. Qd3+ {[%clk 0:00:41.4]} 42... Kc5 {[%clk 0:01:29.8]} 43. Qc3+
{[%clk 0:00:40.3]} 1-0

[Event "Live Chess"]
[Site "Chess.com"]
[Date "2023.05.21"]
[Round "-"]
[White "WelshTiger"]
[Black "Dhaydon19"]
[Result "0-1"]
[WhiteElo "2330"]
[BlackElo "2697"]
[TimeControl "300"]
[EndTime "3:38:33 PDT"]
[Termination "Dhaydon19 won by resignation"]

1. e4 {[%clk 0:04:58.4]} 1... c6 {[%clk 0:04:58.8]} 2. d4 {[%clk 0:04:56.7]}
2... d5 {[%clk 0:04:57.7]} 3. f3 {[%clk 0:04:56.4]} 3... Nf6 {[%clk 0:04:56.2]}
4. e5 {[%clk 0:04:55.2]} 4... Nfd7 {[%clk 0:04:55.3]} 5. c4 {[%clk 0:04:52.6]}
5... e6 {[%clk 0:04:54.1]} 6. cxd5 {[%clk 0:04:49.1]} 6... cxd5 {[%clk 0:04:53]}
7. f4 {[%clk 0:04:47]} 7... Nc6 {[%clk 0:04:50.8]} 8. Nf3 {[%clk 0:04:46.2]}
8... Nb6 {[%clk 0:04:46.6]} 9. Bd3 {[%clk 0:04:44.8]} 9... g6 {[%clk 0:04:45.2]}
10. Be3 {[%clk 0:04:40.8]} 10... Nb4 {[%clk 0:04:44]} 11. Be2 {[%clk 0:04:38.6]}
11... Bd7 {[%clk 0:04:39]} 12. Nc3 {[%clk 0:04:37.4]} 12... Rc8 {[%clk
0:04:34.8]} 13. O-O {[%clk 0:04:33.3]} 13... Nc4 {[%clk 0:04:32.6]} 14. Bxc4
{[%clk 0:04:32.4]} 14... dxc4 {[%clk 0:04:30.7]} 15. d5 {[%clk 0:04:21.1]} 15...
exd5 {[%clk 0:04:28.1]} 16. Nxd5 {[%clk 0:04:19.9]} 16... Nxd5 {[%clk
0:04:25.4]} 17. Qxd5 {[%clk 0:04:19]} 17... Bc6 {[%clk 0:04:20.7]} 18. Qxd8+
{[%clk 0:04:16.3]} 18... Rxd8 {[%clk 0:04:19.5]} 19. Nd4 {[%clk 0:04:15]} 19...
Bc5 {[%clk 0:04:16.7]} 20. Rad1 {[%clk 0:04:12]} 20... O-O {[%clk 0:04:11.8]}
21. Kf2 {[%clk 0:04:09.8]} 21... Be4 {[%clk 0:04:08.3]} 22. Nb5 {[%clk
0:03:58.3]} 22... Be7 {[%clk 0:04:01.5]} 23. Nc3 {[%clk 0:03:53.6]} 23... Bd3
{[%clk 0:03:59.5]} 24. Rfe1 {[%clk 0:03:52.9]} 24... a6 {[%clk 0:03:58.3]} 25.
Kf3 {[%clk 0:03:44.3]} 25... f6 {[%clk 0:03:55.2]} 26. Bb6 {[%clk 0:03:37.8]}
26... Rd7 {[%clk 0:03:51.4]} 27. e6 {[%clk 0:03:31.2]} 27... Rd6 {[%clk
0:03:44.2]} 28. Bc5 {[%clk 0:03:30.5]} 28... Rfd8 {[%clk 0:03:42.5]} 29. Bxd6
{[%clk 0:03:29.4]} 29... Rxd6 {[%clk 0:03:41.2]} 30. g4 {[%clk 0:03:02.5]} 30...
f5 {[%clk 0:03:38.6]} 31. gxf5 {[%clk 0:02:50.9]} 31... gxf5 {[%clk 0:03:37]}
32. Rg1+ {[%clk 0:02:49.8]} 32... Kf8 {[%clk 0:03:36]} 33. Rg3 {[%clk
0:02:33.6]} 33... b5 {[%clk 0:03:33]} 34. Rdg1 {[%clk 0:02:24.4]} 34... Bf6
{[%clk 0:03:31.8]} 35. Rg8+ {[%clk 0:02:21.4]} 35... Ke7 {[%clk 0:03:30.6]} 36.
Ra8 {[%clk 0:02:05.9]} 36... Kxe6 {[%clk 0:03:26.5]} 37. Re1+ {[%clk 0:02:01.9]}
37... Kf7 {[%clk 0:03:21.5]} 38. Ra7+ {[%clk 0:02:00.3]} 38... Kf8 {[%clk
0:03:19.3]} 39. Re5 {[%clk 0:01:53.7]} 39... b4 {[%clk 0:03:13.8]} 40. Rc5
{[%clk 0:01:36.8]} 40... bxc3 {[%clk 0:03:11]} 41. Rc8+ {[%clk 0:01:35.7]} 41...
Rd8 {[%clk 0:03:08.4]} 42. Rxd8+ {[%clk 0:01:34.1]} 42... Bxd8 {[%clk
0:03:07.4]} 43. bxc3 {[%clk 0:01:34]} 43... Bf6 {[%clk 0:03:03.2]} 44. Rxa6
{[%clk 0:01:25.4]} 44... Bxc3 {[%clk 0:03:01.6]} 45. a4 {[%clk 0:01:24.8]} 45...
Bd2 {[%clk 0:02:59.2]} 46. Rc6 {[%clk 0:01:15.1]} 46... Be4+ {[%clk 0:02:57.8]}
47. Ke2 {[%clk 0:01:14]} 47... Bxc6 {[%clk 0:02:56.6]} 48. Kxd2 {[%clk
0:01:13.9]} 48... Bxa4 {[%clk 0:02:55.5]} 49. Kc3 {[%clk 0:01:13.8]} 49... Bb3
{[%clk 0:02:54.6]} 50. Kd4 {[%clk 0:01:13.7]} 50... Kf7 {[%clk 0:02:53.8]} 0-1